fUSD/lending_fUSD_20240801
["ID","MTS","AMOUNT","RATE_DAILY","PERIOD"]
[333804587,1722521307737,-6167.84,0.00043835,60]
[333804588,1722521307781,-500.0,0.00043835,60]
[333804589,1722521307824,-500.0,0.00043835,60]
[333804590,1722521307866,-500.0,0.00043835,60]
[333804591,1722521307908,-500.0,0.00043835,60]
[333804592,1722521307949,-500.0,0.00043835,60]
[333804593,1722521307990,-1410.47,0.00043835,60]
[333804594,1722521308031,-500.0,0.00043835,60]
[333804595,1722521308074,-500.0,0.00043835,60]
[333804596,1722521308117,-500.0,0.00043835,60]
[333804597,1722521308159,-1605.42,0.00043835,60]
[333804598,1722521308203,-1783.93,0.00043835,60]
[333804599,1722521308251,-1426.56,0.00043835,60]
[333804600,1722521308297,-4305.91,0.00043835,60]
[333804601,1722521308343,-1854.04,0.00043835,60]
[333804602,1722521308388,-500.0,0.00043835,60]
[333804603,1722521308436,-22513.32,0.00043835,60]
[333804604,1722521308485,-3199.95,0.00043835,60]
[333804605,1722521308531,-532.62,0.00043835,60]
[333804606,1722521308578,-1879.51,0.00043835,60]
[333804607,1722521308626,-500.0,0.00043835,60]
[333804608,1722521308672,-500.0,0.00043835,60]
[333804609,1722521308718,-800.59,0.00043835,60]
[333804610,1722521308766,-2741.55,0.00043835,60]
[333804611,1722521308810,-500.0,0.00043835,60]
[333804612,1722521308856,-1495.58610534,0.00043835,60]
[333804614,1722521313246,-160.0,0.0003155,30]
[333804615,1722521313297,-349.0,0.0003155,30]
[333804616,1722521313345,-2999.999996,0.0003155,120]
[333804617,1722521313395,-529.96785667,0.0003155,60]
[333804618,1722521313443,-2158.64603746,0.0003155,120]
[333804619,1722521313490,-1065413.73,0.0003155,120]
[333804620,1722521313540,-2198.40595085,0.0003155,32]
[333804621,1722521313587,-14878.72408988,0.0003155,120]
[333804622,1722521313639,-221.58008997,0.0003155,30]
[333804623,1722521313687,-799.93521002,0.0003155,30]
[333804624,1722521313732,-1749.0,0.0003155,30]
[333804625,1722521313782,-1749.0,0.0003155,30]
[333804626,1722521313829,-1000.0,0.0003155,60]
[333804627,1722521313879,-1000.0,0.0003155,30]
[333804628,1722521313924,-1000.0,0.0003155,60]
[333804629,1722521313973,-1000.0,0.0003155,60]
[333804630,1722521314020,-1000.0,0.0003155,60]
[333804631,1722521314069,-1000.0,0.0003155,30]
[333804632,1722521314121,-1000.0,0.0003155,30]
[333804633,1722521314172,-192.0,0.0003155,30]
[333804634,1722521314221,-1000.0,0.0003155,30]
[333804635,1722521314272,-192.0,0.0003155,30]
[333804636,1722521314323,-192.0,0.0003155,30]
[333804637,1722521314373,-1000.0,0.0003155,30]
[333804638,1722521314420,-1000.0,0.0003155,60]
[333804639,1722521314468,-1000.0,0.0003155,30]
[333804640,1722521314513,-1000.0,0.0003155,30]
[333804641,1722521314559,-1000.0,0.0003155,30]
[333804642,1722521314607,-1000.0,0.0003155,30]
[333804643,1722521314654,-1000.0,0.0003155,60]
[333804644,1722521314699,-1000.0,0.0003155,30]
[333804645,1722521314746,-1000.0,0.0003155,30]
[333804646,1722521314790,-1000.0,0.0003155,30]
[333804647,1722521314834,-1000.0,0.0003155,30]
[333804648,1722521314879,-1000.0,0.0003155,60]
[333804649,1722521314922,-1000.0,0.0003155,120]
[333804650,1722521314968,-1000.0,0.0003155,120]
[333804651,1722521315015,-1000.0,0.0003155,30]
[333804652,1722521315062,-1000.0,0.0003155,30]
[333804653,1722521315110,-1000.0,0.0003155,30]
[333804654,1722521315156,-1000.0,0.0003155,30]
[333804655,1722521315201,-1000.0,0.0003155,60]
[333804656,1722521315246,-1000.0,0.0003155,60]
[333804657,1722521315291,-1000.0,0.0003155,60]
[333804658,1722521315336,-1000.0,0.0003155,60]
[333804659,1722521315382,-1000.0,0.0003155,60]
[333804660,1722521315429,-1000.0,0.0003155,30]
[333804661,1722521315476,-2000.0,0.0003155,30]
[333804662,1722521315522,-1000.0,0.0003155,30]
[333804663,1722521315568,-1000.0,0.0003155,30]
[333804664,1722521315616,-1000.0,0.0003155,30]
[333804665,1722521315661,-1000.0,0.0003155,60]
[333804666,1722521315705,-1000.0,0.0003155,30]
[333804667,1722521315747,-1000.0,0.0003155,30]
[333804668,1722521315788,-1000.0,0.0003155,30]
[333804669,1722521315832,-1000.0,0.0003155,30]
[333804670,1722521315872,-1039.45,0.0003155,30]
[333804671,1722521315912,-1749.0,0.0003155,30]
[333804672,1722521316395,-500.0,0.0003155,30]
[333804673,1722521316437,-500.0,0.0003155,30]
[333804674,1722521316483,-50000.0,0.0003155,30]
[333804675,1722521316531,-50000.0,0.0003155,31]
[333804676,1722521316578,-50000.0,0.0003155,32]
[333804677,1722521316623,-50000.0,0.0003155,33]
[333804678,1722521316669,-50000.0,0.0003155,34]
[333804679,1722521316710,-837.29567684,0.0003155,30]
[333804680,1722521316752,-1000.0,0.0003155,30]
[333804681,1722521316794,-1618.59823563,0.0003155,120]
[333804682,1722521316834,-424.80095197,0.0003155,120]
[333804683,1722521316875,-745.75967913,0.0003155,30]
[333804684,1722521316916,-878.80584093,0.0003155,60]
[333804685,1722521316959,-163.11107763,0.0003155,30]
[333804686,1722521317002,-708.39678687,0.0003155,120]
[333804687,1722521317044,-2929.46623232,0.0003155,120]
[333804688,1722521317087,-2098.3845253,0.0003155,120]
[333804689,1722521317126,-820.14068299,0.0003155,30]
[333804690,1722521317167,-1200.0,0.0003155,120]
[333804691,1722521317209,-827.98503486,0.0003155,30]
[333804692,1722521317248,-2040.74110649,0.0003155,120]
[333804693,1722521317289,-891.85801244,0.0003155,30]
[333804694,1722521317327,-1583.2334795,0.0003155,60]
[333804695,1722521317368,-921.36797437,0.0003155,30]
[333804696,1722521317410,-2557.94805939,0.0003155,120]
[333804697,1722521317452,-1744.19817523,0.0003155,120]
[333804698,1722521317495,-482.97656226,0.0003155,31]
[333804699,1722521317537,-947.98869815,0.0003155,120]
[333804700,1722521317583,-1112.84344057,0.0003155,120]
[333804701,1722521317625,-579.71471697,0.0003155,120]
[333804702,1722521317667,-619.9726807,0.0003155,120]
[333804703,1722521317709,-1791.14556938,0.0003155,120]
[333804704,1722521317756,-319.08601619,0.0003155,120]
[333804705,1722521317802,-2389.49640203,0.0003155,120]
[333804706,1722521317847,-1311.11305751,0.0003155,120]
[333804707,1722521317892,-2118.96370515,0.0003155,120]
[333804708,1722521317936,-910.58385986,0.0003155,30]
[333804709,1722521317978,-163.02973226,0.0003155,120]
[333804710,1722521318021,-172.97053621,0.0003155,30]
[333804711,1722521318062,-199.69564814,0.0003155,120]
[333804712,1722521318105,-585.32663829,0.0003155,120]
[333804713,1722521318147,-279.94633141,0.0003155,30]
[333804714,1722521318192,-1548.67278904,0.0003155,120]
[333804715,1722521318237,-904.35509028,0.0003155,120]
[333804716,1722521318282,-227.65129215,0.0003155,120]
[333804717,1722521318328,-593.86593418,0.0003155,120]
[333804718,1722521318375,-847.50192223,0.0003155,30]
[333804719,1722521318423,-263.3104787,0.0003155,120]
[333804720,1722521318470,-951.21475087,0.0003155,120]
[333804721,1722521318517,-2782.63958455,0.0003155,120]
[333804722,1722521318563,-1221.49157117,0.0003155,120]
[333804723,1722521318607,-1933.52090398,0.0003155,120]
[333804724,1722521318652,-664.53420651,0.0003155,30]
[333804725,1722521318697,-2291.53711117,0.0003155,120]
[333804726,1722521318746,-1265.4815771,0.0003155,120]
[333804727,1722521318790,-310.54772945,0.0003155,30]
[333804728,1722521318835,-569.93187588,0.0003155,120]
[333804729,1722521318886,-172.87334959,0.0003155,30]
[333804730,1722521318929,-288.48963638,0.0003155,31]
[333804731,1722521318977,-909.79832716,0.0003155,120]
[333804732,1722521319023,-1712.83345156,0.0003155,30]
[333804733,1722521319067,-188.25788502,0.0003155,30]
[333804734,1722521319113,-2795.07405786,0.0003155,30]
[333804735,1722521319161,-1402.71583299,0.0003155,30]
[333804736,1722521319210,-690.59294541,0.0003155,30]
[333804737,1722521319259,-1096.94522943,0.0003155,30]
[333804738,1722521319307,-756.0,0.0003155,120]
[333804739,1722521319363,-1573.62806951,0.0003155,120]
[333804740,1722521319432,-166.7518168,0.0003155,30]
[333804741,1722521319509,-1762.29332683,0.0003155,120]
[333804742,1722521319581,-782.39905337,0.0003155,30]
[333804743,1722521319627,-3008.34652474,0.0003155,120]
[333804744,1722521319671,-500.0,0.0003155,30]
[333804745,1722521319713,-500.0,0.0003155,30]
[333804746,1722521319757,-500.0,0.0003155,30]
[333804747,1722521319801,-500.0,0.0003155,30]
[333804748,1722521319848,-1001.12345678,0.0003155,120]
[333804749,1722521319889,-1000.0,0.0003155,36]
[333804750,1722521319932,-1235.0,0.0003155,30]
[333804751,1722521319974,-1588.0,0.0003155,35]
[333804752,1722521320016,-1585.0,0.0003155,48]
[333804753,1722521320059,-1508.0,0.0003155,48]
[333804754,1722521320104,-1852.0,0.0003155,120]
[333804755,1722521320150,-6806.56051685,0.0003155,60]
[333804756,1722521320197,-2445.17712655,0.0003155,120]
[333804757,1722521320253,-694.2489,0.0003155,30]
[333804758,1722521320301,-988.0,0.0003155,30]
[333804759,1722521320349,-565.0,0.0003155,30]
[333804760,1722521320395,-1114.82623816,0.0003155,120]
[333804761,1722521320443,-838.27071439,0.0003155,120]
[333804762,1722521320490,-156.62104752,0.0003155,40]
[333804763,1722521320536,-168.0,0.0003155,30]
[333804764,1722521320582,-892.2258723,0.0003155,120]
[333804765,1722521320628,-196.59502031,0.0003155,90]
[333804766,1722521320675,-284.05775226,0.0003155,30]
[333804767,1722521320722,-5167.96711185,0.0003155,120]
[333804768,1722521320771,-10831.98703443,0.0003155,120]
[333804769,1722521320817,-362.22169447,0.0003155,120]
[333804770,1722521320860,-150.0,0.0003155,120]
[333804771,1722521320904,-10000.0,0.0003155,120]
[333804772,1722521320950,-177.1522094,0.0003155,30]
[333804773,1722521320997,-2538.39895535,0.0003155,120]
[333804774,1722521321042,-7100.0,0.0003155,120]
[333804775,1722521321366,-5000.0,0.0003155,33]
[333804776,1722521321422,-3759.36,0.0003155,60]
[333804777,1722521321471,-356.86971405,0.0003155,49]
[333804778,1722521321519,-89413.64237948,0.0003155,30]
[333804779,1722521321566,-178.48299163,0.0003155,120]
[333804780,1722521321611,-4231.0,0.0003155,120]
[333804781,1722521321658,-987.199999,0.0003155,30]
[333804782,1722521321703,-412.0,0.0003155,30]
[333804783,1722521321748,-84621.86165641,0.0003155,60]
[333804784,1722521321794,-1474.0,0.0003155,120]
[333804785,1722521321838,-1000.0,0.0003155,30]
[333804786,1722521321883,-1000.0,0.0003155,30]
[333804787,1722521321930,-1000.0,0.0003155,30]
[333804789,1722521321976,-1000.0,0.0003155,30]
[333804790,1722521322021,-1000.0,0.0003155,30]
[333804791,1722521322076,-1000.0,0.0003155,30]
[333804792,1722521322147,-1000.0,0.0003155,30]
[333804793,1722521322223,-1000.0,0.0003155,30]
[333804794,1722521322290,-1000.0,0.0003155,30]
[333804795,1722521322335,-1000.0,0.0003155,30]
[333804796,1722521322378,-1000.0,0.0003155,30]
[333804797,1722521322422,-1000.0,0.0003155,30]
[333804798,1722521322468,-1000.0,0.0003155,30]
[333804799,1722521322538,-1000.0,0.0003155,30]
[333804800,1722521322609,-1000.0,0.0003155,30]
[333804801,1722521322681,-1000.0,0.0003155,30]
[333804802,1722521322744,-1000.0,0.0003155,30]
[333804803,1722521322788,-1000.0,0.0003155,30]
[333804804,1722521322832,-1000.0,0.0003155,30]
[333804805,1722521322875,-1000.0,0.0003155,30]
[333804806,1722521322924,-1000.0,0.0003155,30]
[333804807,1722521322990,-1000.0,0.0003155,30]
[333804808,1722521323060,-1000.0,0.0003155,30]
[333804809,1722521323126,-1000.0,0.0003155,30]
[333804810,1722521323169,-1680.712285,0.0003155,30]
[333804811,1722521323210,-400.0,0.0003155,30]
[333804812,1722521323253,-400.0,0.0003155,30]
[333804813,1722521323295,-680.131119,0.0003155,30]
[333804814,1722521323337,-7191.38,0.0003155,30]
[333804815,1722521323380,-7191.38,0.0003155,32]
[333804816,1722521323425,-7191.38,0.0003155,34]
[333804817,1722521323471,-7191.38,0.0003155,36]
[333804818,1722521323515,-7191.38,0.0003155,38]
[333804819,1722521323562,-7191.38,0.0003155,40]
[333804820,1722521323606,-7191.38,0.0003155,42]
[333804821,1722521323653,-7191.38,0.0003155,44]
[333804822,1722521323696,-7191.38,0.0003155,46]
[333804823,1722521323743,-7191.5180869,0.0003155,48]
[333804837,1722521418421,800.0,0.00026986,120]
[333804849,1722521432440,-740.14,9.13e-05,2]
[333804850,1722521432449,-202.95082566,0.00010753,2]
[333804851,1722521432461,-763.69917434,0.00010753,2]
[333804852,1722521432471,-300.0,0.00010788,2]
[333804853,1722521432480,-1210.9781,0.00010789,2]
[333804854,1722521432489,-3371.2748,0.00010789,2]
[333804855,1722521432498,-541.6496,0.00010789,2]
[333804856,1722521432508,-150.0,0.00010985,2]
[333804857,1722521432517,-1486.13521999,0.00010986,2]
[333804858,1722521432528,-314.76788001,0.00010986,2]
[333804859,1722521432538,-1794.66953354,0.00010986,2]
[333804860,1722521432549,-1085.42033485,0.00010986,2]
[333804861,1722521432561,-4228.0863352,0.00010986,2]
[333804862,1722521432614,-658.25,0.00010986,2]
[333804863,1722521432625,-419.17949641,0.00010986,2]
[333804864,1722521432635,-1490.86709496,0.00010986,2]
[333804865,1722521432647,-535.37450504,0.00010986,2]
[333804866,1722521432657,-75765.3967,0.00010986,2]
[333804867,1722521432667,-13433.8983,0.00010986,2]
[333804868,1722521432676,-4790.3618,0.00010986,2]
[333804869,1722521432686,-250.0,0.00011,2]
[333804870,1722521432695,-173.86,0.00011013,2]
[333804871,1722521432705,-144251.8373,0.00011086,2]
[333804872,1722521432714,-100000.0,0.00011086,2]
[333804873,1722521432724,-500.0,0.00011086,2]
[333804874,1722521432734,-1000.0,0.00011086,2]
[333804875,1722521432744,-4472.47771748,0.00011105,2]
[333804876,1722521432753,-179.99,0.00011105,2]
[333804877,1722521432763,-1175.68290634,0.00011105,2]
[333804878,1722521432775,-299.99,0.00011105,2]
[333804879,1722521432784,-150.99,0.00011105,2]
[333804880,1722521432794,-484.69898026,0.00011105,2]
[333804881,1722521432803,-1073.58046777,0.00011105,2]
[333804882,1722521432814,-439.64535601,0.00011161,2]
[333804883,1722521432823,-196.9278947,0.00011161,2]
[333804884,1722521432832,-439.64535601,0.00011186,2]
[333804885,1722521432842,-439.64535601,0.00011186,2]
[333804886,1722521432852,-439.64535601,0.00011186,2]
[333804887,1722521432862,-155.0,0.00011186,2]
[333804888,1722521432871,-205.72998009,0.00011186,2]
[333804889,1722521432880,-263.85468147,0.00011206,2]
[333804890,1722521432890,-1000.0,0.00011222,2]
[333804891,1722521432900,-4686.42,0.00011222,2]
[333804892,1722521432909,-476.4573429,0.00011322,2]
[333804893,1722521432919,-155.0,0.00011322,2]
[333804894,1722521432928,-499.99,0.00011363,2]
[333804896,1722521432937,-740.14,0.00011393,2]
[333804897,1722521432947,-200.0,0.00011402,2]
[333804898,1722521432956,-210.84776497,0.00011525,2]
[333804899,1722521432965,-218.69189255,0.00011525,2]
[333804900,1722521432975,-247.479,0.00011589,2]
[333804901,1722521432986,-171.4,0.0001161,2]
[333804902,1722521432995,-357.07,0.0001161,2]
[333804903,1722521433006,-224.92,0.0001166,2]
[333804904,1722521433016,-218.69189255,0.0001185,2]
[333804905,1722521433026,-218.69189255,0.0001185,2]
[333804906,1722521433035,-218.69189255,0.0001185,2]
[333804907,1722521433045,-420.0,0.00011857,2]
[333804908,1722521433054,-2000.0,0.000119,2]
[333804909,1722521433064,-550.0,0.00012,2]
[333804910,1722521433074,-500.0,0.000122,4]
[333804911,1722521433084,-1000.0,0.000123,4]
[333804912,1722521433094,-155.28318094,0.0001236,2]
[333804913,1722521433104,-1500.0,0.000124,4]
[333804914,1722521433114,-2000.0,0.000125,4]
[333804915,1722521433124,-372.65442476,0.000125,2]
[333804916,1722521433134,-102929.95383672,0.0001254,2]
[333804917,1722521433146,-220676.20491817,0.0001254,2]
[333804918,1722521433158,-3642.47851108,0.0001254,2]
[333804919,1722521433169,-919.32000046,0.0001254,2]
[333804920,1722521433180,-630.85,0.0001254,2]
[333804921,1722521433192,-71101.47243274,0.0001254,2]
[333804922,1722521433203,-10283.09270712,0.0001254,2]
[333804923,1722521433215,-301.2900896,0.0001254,2]
[333804924,1722521433227,-494.0133311,0.0001254,2]
[333804925,1722521433258,-460.43123519,0.0001254,2]
[333804934,1722521438284,-6343.80348218,0.0001254,2]
[333804937,1722521438346,-355.55693075,0.0001254,2]
[333804938,1722521438357,-3253.18471337,0.0001254,2]
[333805046,1722521439769,-4552.91952645,0.0001254,2]
[333805049,1722521439788,-609.04084905,0.0001254,2]
[333805052,1722521439800,-2084.0327375,0.0001254,2]
[333805054,1722521439811,-2158.98320904,0.0001254,2]
[333805056,1722521439824,-2183.16426548,0.0001254,2]
[333805060,1722521439854,-281.55,0.0001254,2]
[333805063,1722521439871,-18716.99087636,0.0001254,2]
[333805065,1722521439884,-1009.91881608,0.0001254,2]
[333805067,1722521439896,-1251.34130064,0.0001254,2]
[333805070,1722521439908,-729.82228752,0.0001254,2]
[333805072,1722521439919,-289.4002629,0.0001254,2]
[333805131,1722521440421,-179.02196653,0.00012537,2]
[333805133,1722521440431,-1962.23531424,0.0001254,2]
[333805135,1722521440442,-2191.28868631,0.0001254,2]
[333805137,1722521440455,-3233.66704584,0.0001254,2]
[333805139,1722521440467,-502.36071293,0.0001254,2]
[333805153,1722521440589,-662.70634916,0.0001254,2]
[333805156,1722521440601,-505.53116172,0.0001254,2]
[333805158,1722521440615,-939.63137312,0.0001254,2]
[333805165,1722521440673,-2954.1894928,0.0001254,2]
[333805181,1722521440819,-902.16144431,0.0001254,2]
[333805183,1722521440831,-630.25841339,0.0001254,2]
[333805185,1722521440843,-2476.92546041,0.0001254,2]
[333805188,1722521440858,-441.48538942,0.0001254,2]
[333805441,1722521443567,-2997.62048627,0.0001254,2]
[333805443,1722521443579,-4085.41056951,0.0001254,2]
[333805445,1722521443590,-1942.04386883,0.0001254,2]
[333805447,1722521443602,-475.67259041,0.0001254,2]
[333805450,1722521443614,-214410.53377686,0.0001254,2]
[333805452,1722521443624,-484.32,0.0001257,2]
[333805454,1722521443634,-2600.0,0.000126,4]
[333805456,1722521443644,-372.65442476,0.000126,2]
[333805458,1722521443654,-1000.0,0.00012625,2]
[333805460,1722521443663,-500.0,0.000127,4]
[333805462,1722521443673,-372.65442476,0.000127,2]
[333805464,1722521443682,-500.0,0.00012714,2]
[333805466,1722521443692,-500.0,0.000128,4]
[333805468,1722521443701,-372.65442476,0.000128,2]
[333805470,1722521443710,-155.0,0.0001281,2]
[333805472,1722521443720,-200.0,0.00012837,2]
[333805474,1722521443729,-200.0,0.00012837,2]
[333805476,1722521443738,-173.86,0.00012848,2]
[333805478,1722521443749,-5243.8644,0.000129,2]
[333805480,1722521443758,-13256.8447,0.000129,2]
[333805482,1722521443768,-10000.0,0.000129,2]
[333805483,1722521443780,-2000.0,0.000129,2]
[333805486,1722521443792,-208.67051964,0.000129,2]
[333805488,1722521443801,-500.0,0.000129,4]
[333805490,1722521443812,-372.65442476,0.000129,2]
[333805492,1722521443822,-22152.66680164,0.0001299,2]
[333805494,1722521443832,-716.08786612,0.00012997,2]
[333805496,1722521443841,-206.12754218,0.00012999,2]
[333805498,1722521443851,-200.74138353,0.00012999,3]
[333805500,1722521443861,-500.0,0.00012999,2]
[333805502,1722521443870,-500.0,0.00012999,2]
[333805504,1722521443879,-500.0,0.00012999,2]
[333805506,1722521443889,-307.02640046,0.00012999,2]
[333805508,1722521443898,-500.0,0.00012999,2]
[333805510,1722521443909,-500.0,0.00012999,2]
[333805512,1722521443918,-500.0,0.00012999,2]
[333805514,1722521443927,-514.91848032,0.00012999,2]
[333805516,1722521443938,-2000.0,0.00012999,2]
[333805518,1722521443947,-2000.0,0.00012999,2]
[333805520,1722521443957,-2000.0,0.00012999,2]
[333805522,1722521443967,-2000.0,0.00012999,2]
[333805524,1722521443976,-88981.68882854,0.00013,2]
[333805526,1722521443988,-73623.13718102,0.00013,2]
[333805528,1722521444005,-674.4504,0.00013,2]
[333805531,1722521444016,-1043.91,0.00013,2]
[333805533,1722521444028,-275130.82288916,0.00013,2]
[333805536,1722521444046,-93965.67363465,0.00013,2]
[333805538,1722521444062,-396.89089915,0.00013,2]
[333805540,1722521444073,-8264.97603201,0.00013,2]
[333805840,1722521447040,-48145.65904328,0.00010789,2]
[333805842,1722521447049,-196.9278947,0.00011161,2]
[333805844,1722521447058,-115483.25310616,0.00013,2]
[333805849,1722521447095,-7518.8361788,0.00013,2]
[333805856,1722521447155,-356.0865382,0.00013,2]
[333805873,1722521447328,-3566.85013468,0.00013,2]
[333805875,1722521447339,-400.61843616,0.00013,2]
[333805877,1722521447351,-2073.29355406,0.00013,2]
[333805879,1722521447362,-624.09688597,0.00013,2]
[333805882,1722521447373,-743.13090206,0.00013,2]
[333806893,1722521464174,800.0,0.00026986,120]
[333806894,1722521472793,150.5,0.0001789,120]
[333806895,1722521474342,150.5,0.0001789,120]
[333806896,1722521474378,191.0,0.0001789,120]
[333806897,1722521474436,150.5,0.0001788,120]
[333806898,1722521474483,191.0,0.0001788,120]
[333806899,1722521474556,159.58,0.0001787,120]
[333806900,1722521474594,191.0,0.0001787,120]
[333806901,1722521474796,191.0,0.0001889,120]
[333806902,1722521475287,191.0,0.0001888,120]
[333806903,1722521475773,191.0,0.0001887,120]
[333806904,1722521476286,191.0,0.00019989,120]
[333806905,1722521476750,150.5,0.0001788,120]
[333806906,1722521476786,191.0,0.00019979,120]
[333806907,1722521477233,191.0,0.0002039,120]
[333806908,1722521477263,232.99,0.0001787,120]
[333806909,1722521477704,195.81,0.0002038,120]
[333806910,1722521499811,1005.0,0.00027,120]
[333806911,1722521509065,332.44980732,0.00027,120]
[333806912,1722521523942,269.79152806,0.00027,120]
[333806913,1722521593378,154.36,0.0001789,120]
[333806914,1722521593407,344.0,0.0001789,120]
[333806915,1722521594259,344.0,0.0001788,120]
[333806916,1722521594396,344.0,0.0001787,120]
[333806917,1722521594938,344.0,0.0001889,120]
[333806918,1722521595479,344.0,0.0001888,120]
[333806919,1722521595964,344.0,0.0001887,120]
[333806920,1722521596617,344.0,0.000199,120]
[333806921,1722521597102,344.0,0.0001989,120]
[333806922,1722521597426,500.0,0.00025104,120]
[333806923,1722521597650,344.0,0.0002039,120]
[333806924,1722521597800,500.0,0.00025923,120]
[333806925,1722521598175,351.26,0.0002038,120]
[333806926,1722521600287,500.0,0.00026742,120]
[333806927,1722521605833,1000.0,0.00024932,120]
[333806928,1722521614758,500.0,0.0002616,120]
[333806929,1722521712983,298.91,0.000178,120]
[333806930,1722521788354,155.0,0.00021575,60]
[333806931,1722521964960,420.0,0.00027,120]
[333806933,1722522136261,155.0,0.00026967,120]
[333806934,1722522193340,150.5,0.000178,120]
[333806935,1722522193831,298.34,0.0001779,120]
[333806936,1722522196359,800.0,0.00026959,120]
[333806937,1722522235090,285.91869841,0.00025,60]
[333806938,1722522254765,800.0,0.00026959,120]
[333806939,1722522268866,395.29358553,0.00027,120]
[333806940,1722522325286,617.89,0.00027,120]
[333806941,1722522356244,2866.52896504,6.94e-05,2]
[333806942,1722522412178,692.66620014,6.94e-05,2]
[333806943,1722522416562,220.12459623,6.94e-05,2]
[333806944,1722522424125,75.00410611,6.94e-05,2]
[333806945,1722522424148,410.24101248,6.94e-05,2]
[333806946,1722522425546,307.10067312,6.94e-05,2]
[333806947,1722522427052,207.00138333,6.94e-05,2]
[333806948,1722522427640,871.55601316,6.94e-05,2]
[333806949,1722522428130,2563.60831318,6.94e-05,2]
[333806950,1722522428210,227.57356757,6.94e-05,2]
[333806951,1722522428962,727.58054998,6.94e-05,2]
[333806952,1722522430596,4685.33848718,6.94e-05,2]
[333806953,1722522430618,10000.0,6.94e-05,2]
[333806954,1722522430639,10000.0,6.94e-05,2]
[333806955,1722522430661,10000.0,6.94e-05,2]
[333806956,1722522430681,10000.0,6.94e-05,2]
[333806957,1722522430702,10000.0,6.94e-05,2]
[333806958,1722522430724,10000.0,6.94e-05,2]
[333806959,1722522430745,10000.0,6.94e-05,2]
[333806960,1722522430772,10000.0,6.94e-05,2]
[333806961,1722522430816,10000.0,6.94e-05,2]
[333806962,1722522430845,10000.0,6.94e-05,2]
[333806963,1722522430877,10000.0,6.94e-05,2]
[333806964,1722522430911,10000.0,6.94e-05,2]
[333806965,1722522430942,10000.0,6.94e-05,2]
[333806966,1722522430974,10000.0,6.94e-05,2]
[333806967,1722522431003,10000.0,6.94e-05,2]
[333806968,1722522431033,10000.0,6.94e-05,2]
[333806969,1722522431073,10000.0,6.94e-05,2]
[333806970,1722522431104,8965.09061471,6.94e-05,2]
[333806971,1722522432459,999.26961576,6.94e-05,2]
[333806972,1722522432558,35.63976953,6.94e-05,2]
[333806973,1722522432588,9226.36549865,6.94e-05,2]
[333806974,1722522433149,-188.14553249,8.412e-05,2]
[333806975,1722522433183,-718.65,9.861e-05,2]
[333806976,1722522433272,19684.01929505,8.412e-05,2]
[333806977,1722522437321,250.0,6.94e-05,2]
[333806978,1722522437351,1284.09297727,6.94e-05,2]
[333806979,1722522438045,3801.13980308,6.94e-05,2]
[333806980,1722522438892,155.0,6.94e-05,2]
[333806981,1722522444027,797.68561471,6.94e-05,2]
[333806982,1722522452835,961.66666097,6.94e-05,2]
[333806983,1722522467248,1284.09297727,6.94e-05,2]
[333806984,1722522468040,961.66666097,6.94e-05,2]
[333806985,1722522470532,262.18128558,6.94e-05,2]
[333806986,1722522470613,234.41249741,8.412e-05,2]
[333806987,1722522473128,227.57356757,8.412e-05,2]
[333806988,1722522473176,1018.29565993,8.412e-05,2]
[333806989,1722522478096,18171.3774677,8.412e-05,2]
[333806991,1722522521343,626.56798976,0.00025,120]
[333806992,1722522522156,661.82280531,0.00027,120]
[333806993,1722522525238,157.10598369,0.0002509,120]
[333806994,1722522529361,628.99968624,0.00026,120]
[333806995,1722522593407,-722.338587,8.178e-05,2]
[333806999,1722522604345,251.59831595,0.00026967,120]